bitfinex-derivatives/quotes_SOLF0:USTF0_20240830
["timestamp","ask_amount","ask_price","bid_price","bid_amount"]
[1725058050675,3.6442,137.21,137.19,3.69861875]
[1725058050870,0.05199711,137.22,137.19,0.05401875]
[1725058051378,3.6444,137.2,137.19,0.05401875]
[1725058058688,3.6453,137.17,137.13,1.3303]
[1725058058886,3.6453,137.17,137.13,10.2903]
[1725058059591,3.6453,137.17,137.14,3.646]
[1725058059785,0.0460134,137.16,137.14,0.05460913]
[1725058060682,0.0460134,137.16,137.15,3.6458]
[1725058065889,0.0460134,137.16,137.15,12.6058]
[1725058071497,0.0460134,137.16,137.15,3.6458]
[1725058071793,0.0460134,137.16,137.15,12.6058]
[1725058079801,0.0460134,137.16,137.15,3.6458]
[1725058080604,0.0460134,137.16,137.14,3.70050913]
[1725058082195,0.0460134,137.16,137.15,3.6458]
[1725058085703,0.0460134,137.16,137.15,12.6058]
[1725058086013,1.4314,137.22,137.15,12.6058]
[1725058086014,1.4314,137.22,137.15,44.8]
[1725058086310,5.0755,137.22,137.19,8.96]
[1725058086605,1.4314,137.22,137.19,3.6446]
[1725058087110,1.48744008,137.22,137.19,3.69508059]
[1725058087310,5.13154008,137.22,137.19,3.69508059]
[1725058089007,1.48744008,137.22,137.2,3.6443]
[1725058089202,1.48744008,137.22,137.21,8.96]
[1725058089203,0.05604008,137.22,137.21,8.96]
[1725058089519,0.05604008,137.22,137.21,12.6042]
[1725058094514,0.05604008,137.22,137.21,3.6442]
[1725058099212,0.05604008,137.22,137.19,0.05048059]
[1725058099808,3.70004008,137.22,137.19,0.05048059]
[1725058101414,3.70004008,137.22,137.2,3.6444]
[1725058102818,3.70004008,137.22,137.19,3.69508059]
[1725058103021,3.6443,137.21,137.19,0.05048059]
[1725058104327,3.6443,137.21,137.19,3.69518059]
[1725058107638,3.70004008,137.22,137.19,3.69518059]
[1725058109942,3.6443,137.21,137.19,3.69518059]
[1725058110440,3.6444,137.2,137.19,0.05048059]
[1725058111140,3.6443,137.21,137.19,0.05048059]
[1725058111938,0.05604008,137.22,137.19,0.05048059]
[1725058112641,3.70014008,137.22,137.19,3.69508059]
[1725058120346,3.6443,137.21,137.19,3.69508059]
[1725058120540,0.05604008,137.22,137.19,3.69508059]
[1725058120946,3.70004008,137.22,137.19,3.69508059]
[1725058121843,0.05604008,137.22,137.19,9.01048059]
[1725058122049,0.05604008,137.22,137.21,8.96]
[1725058122449,0.05604008,137.22,137.21,12.6042]
[1725058124754,3.6424,137.28,137.25,3.6431]
[1725058125155,2.6594,137.3,137.25,12.6031]
[1725058125354,3.6422,137.29,137.25,12.6031]
[1725058125743,0.04818613,137.28,137.26,0.04862336]
[1725058126149,3.69048613,137.28,137.26,0.04862336]
[1725058131254,3.69048613,137.28,137.26,3.69142336]
[1725058134061,0.04818613,137.28,137.27,3.6426]
[1725058159179,0.04818613,137.28,137.26,0.04862336]
[1725058159385,0.04818613,137.28,137.27,8.96]
[1725058160457,0.04818613,137.28,137.27,12.6026]
[1725058164192,2.7401,137.34,137.27,8.96]
[1725058164491,2.7401,137.34,137.29,8.96]
[1725058164885,3.641,137.33,137.3,3.6416]
[1725058165293,3.69238659,137.33,137.3,3.69227176]
[1725058167200,0.05138659,137.33,137.3,0.05067176]
[1725058168099,0.05138659,137.33,137.31,3.6414]
[1725058170204,3.69238659,137.33,137.31,3.6414]
[1725058177409,3.69238659,137.33,137.3,3.69227176]
[1725058187215,3.6414,137.32,137.3,0.05067176]
[1725058188106,3.6415,137.31,137.3,0.05067176]
[1725058204730,0.05138659,137.33,137.3,9.01067176]
[1725058206328,3.69258659,137.33,137.31,3.6415]
[1725058207733,567.0,137.74,137.32,44.8]
[1725058207940,43.5681933,137.73,137.33,1.32512125]
[1725058208226,8.96,137.64,137.57,8.96]
[1725058208427,12.65002162,137.64,137.57,8.96]
[1725058208733,0.05355333,137.62,137.59,0.0460641]
[1725058209625,0.05355333,137.62,137.6,8.19087794]
[1725058209831,0.05355333,137.62,137.61,2.74133008]
[1725058210832,0.05355333,137.62,137.61,11.82501516]
[1725058211930,0.05355333,137.62,137.61,3.6336]
[1725058212228,0.05355333,137.62,137.61,19.42683782]
[1725058212425,0.05355333,137.62,137.61,27.61517178]
[1725058212625,0.05355333,137.62,137.61,35.22290663]
[1725058212830,0.05355333,137.62,137.61,19.42966881]
[1725058217331,3.41238878,137.65,137.61,3.6336]
[1725058217537,6.2433,137.67,137.62,8.18540979]
[1725058217831,6.2433,137.67,137.61,11.23903597]
[1725058217832,6.32207499,137.67,137.63,2.73918238]
[1725058218035,6.32207499,137.67,137.64,8.18558517]
[1725058218224,6.32207499,137.67,137.65,2.73918238]
[1725058218535,6.37705266,137.67,137.64,0.05158542]
[1725058218729,6.37705266,137.67,137.65,2.7382997]
[1725058218927,6.37705266,137.67,137.64,0.05158542]
[1725058219127,6.37705266,137.67,137.66,2.73836741]
[1725058219332,10.00905266,137.67,137.64,5.49625511]
[1725058219531,10.00905266,137.67,137.65,2.73906733]
[1725058219741,10.00905266,137.67,137.64,0.05158542]
[1725058220435,6.37705266,137.67,137.64,0.05158542]
[1725058220933,6.37705266,137.67,137.64,3.68438542]
[1725058221132,6.37705266,137.67,137.64,0.05158542]
[1725058222434,10.00905266,137.67,137.64,0.05158542]
[1725058229148,6.37705266,137.67,137.64,0.05158542]
[1725058229342,0.05497767,137.67,137.66,12.5923]
[1725058231146,0.05497767,137.67,137.66,3.6323]
[1725058231437,0.05497767,137.67,137.66,12.5923]
[1725058231939,0.05497767,137.67,137.65,3.6324]
[1725058232335,0.05497767,137.67,137.65,12.5924]
[1725058232737,3.68707767,137.67,137.64,0.05158542]
[1725058232940,0.05497767,137.67,137.64,9.01158542]
[1725058233549,0.05497767,137.67,137.64,12.64418542]
[1725058233747,0.05497767,137.67,137.64,0.05158542]
[1725058233948,0.05497767,137.67,137.64,9.01158542]
[1725058234156,3.68707767,137.67,137.64,9.01158542]
[1725058234746,0.05497767,137.67,137.64,12.64438542]
[1725058237347,4.0617,137.71,137.65,8.96]
[1725058237547,4.0617,137.71,137.64,0.05158542]
[1725058237548,7.66316717,137.71,137.67,8.96]
[1725058237794,3.60146717,137.71,137.68,3.6316]
[1725058237951,4.2284,137.74,137.68,3.6316]
[1725058238151,7.90540464,137.74,137.68,3.6316]
[1725058238355,3.68225114,137.72,137.7,0.04979374]
[1725058238665,3.57205113,137.76,137.71,8.96]
[1725058238951,3.57205113,137.76,137.7,0.04979374]
[1725058238952,3.03130567,137.75,137.73,8.96]
[1725058239254,224.1213,137.78,137.72,8.96]
[1725058239461,227.71514079,137.78,137.72,8.96]
[1725058239757,3.67990412,137.76,137.74,0.05585022]
[1725058240457,3.6299,137.75,137.74,0.05585022]
[1725058240644,0.05010412,137.76,137.74,0.05585022]
[1725058241045,3.67980412,137.76,137.74,0.05585022]
[1725058242354,0.05010412,137.76,137.74,0.05585022]
[1725058245083,3.6299,137.75,137.7,3.631]
[1725058245753,3.6302,137.74,137.69,25.9414]
[1725058245958,0.0468379,137.73,137.7,0.04767015]
[1725058246564,0.0468379,137.73,137.7,3.67887015]
[1725058247362,3.6302,137.74,137.7,3.67887015]
[1725058247363,3.17153713,137.74,137.7,3.67887015]
[1725058247760,3.17153713,137.74,137.7,0.04767015]
[1725058248366,0.05592952,137.73,137.7,0.04767015]
[1725058250166,3.68632952,137.73,137.7,0.04767015]
[1725058250565,0.05592952,137.73,137.67,22.31]
[1725058250771,3.63085306,137.74,137.71,22.31]
[1725058251476,3.63085306,137.74,137.71,25.9408]
[1725058251771,0.05300954,137.74,137.71,22.35914356]
[1725058251966,3.72128682,137.79,137.71,22.35914356]
[1725058252272,3.6298,137.76,137.72,3.6307]
[1725058252472,7.17098892,137.76,137.72,3.6307]
[1725058252872,3.6298,137.76,137.72,3.6307]
[1725058253070,0.05107936,137.75,137.73,0.05200655]
[1725058253271,3.68107936,137.75,137.73,0.05200655]
[1725058253866,3.6302,137.74,137.73,0.05200655]
[1725058254466,3.68117936,137.75,137.73,0.05200655]
[1725058255472,0.05107936,137.75,137.73,0.05200655]
[1725058255972,3.68097936,137.75,137.73,0.05200655]
[1725058257276,3.6302,137.74,137.73,0.05200655]
[1725058258273,0.05107936,137.75,137.73,0.05200655]
[1725058258274,3.68107936,137.75,137.73,0.05200655]
[1725058259675,3.6302,137.74,137.73,0.05200655]
[1725058270080,2.73000218,137.74,137.73,0.05200655]
[1725058270980,0.05107936,137.75,137.64,88.41797474]
[1725058271284,3.69972411,137.74,137.68,8.93]
[1725058271599,3.6307,137.72,137.69,3.6313]
[1725058271982,3.6803741,137.72,137.69,3.68314078]
[1725058273879,3.6311,137.71,137.69,0.05184078]
[1725058274079,8.93,137.71,137.69,0.05184078]
[1725058274585,3.6312,137.7,137.69,0.05184078]
[1725058274783,7.23825492,137.7,137.69,0.05184078]
[1725058275880,0.0496741,137.72,137.69,0.05184078]
[1725058276481,3.6804741,137.72,137.69,0.05184078]
[1725058276680,0.0496741,137.72,137.69,0.05184078]
[1725058277375,8.93,137.73,137.69,0.05184078]
[1725058277684,3.6312,137.7,137.69,0.05184078]
[1725058284882,0.04765088,137.71,137.69,0.05184078]
[1725058285476,3.67865088,137.71,137.69,0.05184078]
[1725058285989,0.04765088,137.71,137.69,3.68324078]
[1725058287085,3.67865088,137.71,137.69,3.68324078]
[1725058287284,3.67865088,137.71,137.69,0.05184078]
[1725058288085,3.6312,137.7,137.69,0.05184078]
[1725058288987,3.67875088,137.71,137.69,0.05184078]
[1725058290296,3.6312,137.7,137.69,0.05184078]
[1725058292490,3.67875088,137.71,137.69,0.05184078]
[1725058293897,3.67875088,137.71,137.69,3.68334078]
[1725058294785,3.67875088,137.71,137.69,0.05184078]
[1725058297391,3.67875088,137.71,137.69,3.68334078]
[1725058298299,3.67875088,137.71,137.69,0.05184078]
[1725058298993,0.04765088,137.71,137.69,3.68304078]
[1725058299592,3.67875088,137.71,137.69,0.05184078]
[1725058302902,3.6312,137.7,137.69,0.05184078]
[1725058309803,7.20356221,137.7,137.69,0.05184078]
[1725058310004,3.6324,137.66,137.62,1.3034]
[1725058310220,8.92,137.68,137.61,82.42723764]
[1725058310406,3.6504248,137.66,137.6,8.92]
[1725058310607,8.92,137.68,137.6,8.92]
[1725058310898,3.6332,137.63,137.6,8.92]
[1725058311103,3.68702093,137.63,137.6,8.96823415]
[1725058312104,3.6333,137.62,137.6,0.04823415]
[1725058312503,0.05382093,137.63,137.6,0.04823415]
[1725058312903,3.68702093,137.63,137.6,0.04823415]
[1725058314808,3.68702093,137.63,137.6,3.68193415]
[1725058318208,3.6333,137.62,137.6,3.68193415]
[1725058318606,3.6333,137.62,137.6,0.04823415]
[1725058320508,3.6336,137.61,137.6,0.04823415]
[1725058320713,0.05382093,137.63,137.6,0.04823415]
[1725058321214,3.6335,137.62,137.6,0.04823415]
[1725058323013,3.6336,137.61,137.6,0.04823415]
[1725058326820,0.05382093,137.63,137.6,0.04823415]
[1725058327011,0.05382093,137.63,137.62,3.6333]
[1725058329118,7.26832636,137.69,137.66,3.632]
[1725058329314,7.26832636,137.69,137.62,12.46744088]
[1725058330320,0.04600098,137.67,137.64,0.0469561]
[1725058331025,0.04600098,137.67,137.65,3.6325]
[1725058331220,0.04600098,137.67,137.64,0.0469561]
[1725058331924,0.04600098,137.67,137.65,3.6325]
[1725058332723,8.96600098,137.67,137.64,0.0469561]
[1725058333120,8.92,137.66,137.64,0.0469561]
[1725058333426,3.6325,137.65,137.64,0.0469561]
[1725058335430,12.5524,137.66,137.64,0.0469561]
[1725058335724,8.92,137.66,137.64,0.0469561]
[1725058335918,3.6325,137.65,137.64,0.0469561]
[1725058336816,3.633,137.64,137.58,95.82233839]
[1725058337364,3.633,137.64,137.61,3.6335]
[1725058337826,3.68788746,137.64,137.61,3.6887707]
[1725058338425,12.60788746,137.64,137.61,3.6887707]
[1725058339524,3.6332,137.63,137.61,3.6887707]
[1725058346623,3.6333,137.62,137.61,0.0552707]
[1725058347130,7.22854847,137.62,137.61,0.0552707]
[1725058348034,0.05488746,137.64,137.61,8.9752707]
[1725058348436,0.05488746,137.64,137.63,3.6331]
[1725058353935,0.05488746,137.64,137.62,3.6332]
[1725058354135,0.05488746,137.64,137.61,0.0552707]
[1725058354735,0.05488746,137.64,137.63,3.6331]
[1725058357148,0.05488746,137.64,137.49,7.2734]
[1725058357149,8.97488746,137.64,137.49,7.2734]
[1725058357345,8.92,137.64,137.58,8.92]
[1725058357739,12.5529,137.64,137.6,3.6337]
[1725058358135,0.05503154,137.63,137.61,0.04725848]
[1725058358539,0.05503154,137.63,137.61,3.68085848]
[1725058359942,3.68813154,137.63,137.61,3.68085848]
[1725058361542,3.68813154,137.63,137.61,0.04725848]
[1725058361742,0.05503154,137.63,137.61,0.04725848]
[1725058362547,3.68823154,137.63,137.61,0.04725848]
[1725058363851,3.6333,137.62,137.61,0.04725848]
[1725058365049,791.1213,137.95,137.68,55.0]
[1725058365251,8.92,137.79,137.69,8.92]
[1725058365448,3.988,137.8,137.69,8.92]
[1725058365656,3.6293,137.78,137.73,3.6302]
[1725058366042,0.05072802,137.77,137.74,0.05125675]
[1725058366249,0.05072802,137.77,137.74,3.68125675]
[1725058366761,0.05072802,137.77,137.74,0.05125675]
[1725058366952,0.05072802,137.77,137.75,3.6299]
[1725058368454,0.05072802,137.77,137.74,3.68135675]
[1725058372365,0.05072802,137.77,137.75,3.6299]
[1725058372763,0.05072802,137.77,137.76,3.6296]
[1725058388777,0.05072802,137.77,137.75,3.6297]
[1725058389979,0.05072802,137.77,137.74,0.05125675]
[1725058390178,8.97072802,137.77,137.74,0.05125675]
[1725058390714,12.5499,137.75,137.74,0.05125675]
[1725058392076,3.6307,137.72,137.67,8.92]
[1725058392584,8.92,137.75,137.69,3.6313]
[1725058392982,8.92,137.75,137.71,0.04703765]
[1725058392983,3.68318459,137.73,137.71,0.04703765]
[1725058393283,8.97258459,137.73,137.71,0.04703765]
[1725058393683,3.6307,137.72,137.71,0.04703765]
[1725058409603,7.34013937,137.72,137.71,0.04703765]
[1725058413107,8.70993937,137.72,137.71,0.04703765]
[1725058416607,17.62993937,137.72,137.71,0.04703765]
[1725058418105,13.9205,137.72,137.71,0.04703765]
[1725058418608,17.56811835,137.72,137.71,0.04703765]
[1725058419112,3.6318,137.68,137.65,8.92]
[1725058419507,3.6318,137.68,137.61,2.7071]
[1725058419702,7.30846279,137.68,137.65,3.6324]
[1725058419945,3.6318,137.68,137.65,3.6324]
[1725058420199,3.68541662,137.68,137.65,3.67884811]
[1725058420399,0.05361662,137.68,137.65,8.96644811]
[1725058420602,0.05361662,137.68,137.67,8.92]
[1725058421806,0.05361662,137.68,137.67,12.552]
[1725058425713,0.05361662,137.68,137.67,3.632]
[1725058427122,0.05361662,137.68,137.66,3.6321]
[1725058427313,0.05361662,137.68,137.65,0.04644811]
[1725058427514,3.68541662,137.68,137.65,0.04644811]
[1725058427710,3.68541662,137.68,137.65,3.76177966]
[1725058428132,8.97361662,137.68,137.65,0.04644811]
[1725058428318,3.65468641,137.67,137.65,0.04644811]
[1725058428521,8.97361662,137.68,137.65,0.04644811]
[1725058428910,12.67878012,137.68,137.65,0.04644811]
[1725058429118,3.6323,137.66,137.65,0.04644811]
[1725058434926,42.946,137.73,137.65,0.04644811]
[1725058434927,0.60386376,137.92,137.65,44.64644811]
[1725058435131,0.60386376,137.92,137.82,8.92]
[1725058435132,1.2991,137.87,137.82,8.92]
[1725058436127,0.05106252,137.86,137.84,3.6273]
[1725058436725,0.05106252,137.86,137.85,3.6273]
[1725058437233,0.05106252,137.86,137.83,0.05272955]
[1725058439743,3.67816252,137.86,137.83,0.05272955]
[1725058439939,0.59537643,137.91,137.84,22.28]
[1725058440141,0.59537643,137.91,137.73,58.79797051]
[1725058440142,1.3659,138.03,137.89,22.28]
[1725058440332,5.00727672,138.03,137.94,22.28]
[1725058440537,27.28727672,138.03,137.91,22.28]
[1725058440736,1.21532626,138.05,137.94,22.28]
[1725058440943,3.71283316,138.03,137.94,22.28]
[1725058441144,0.0528174,137.98,137.96,0.04641135]
[1725058443246,3.6241,137.97,137.96,0.04641135]
[1725058443437,3.55537144,137.96,137.88,25.9062]
[1725058443747,3.6251,137.94,137.88,22.28]
[1725058444043,3.69745582,137.96,137.88,22.28]
[1725058444236,22.28,137.97,137.86,22.28]
[1725058444442,0.04770991,137.93,137.9,0.04902591]
[1725058445343,3.6254,137.92,137.9,0.04902591]
[1725058449247,3.67290991,137.93,137.9,0.04902591]
[1725058449852,0.04770991,137.93,137.9,0.04902591]
[1725058450540,3.67290991,137.93,137.9,0.04902591]
[1725058451448,0.04770991,137.93,137.9,0.04902591]
[1725058451949,3.67310991,137.93,137.9,0.04902591]
[1725058453055,3.6254,137.92,137.9,0.04902591]
[1725058454397,3.6257,137.91,137.9,0.04902591]
[1725058456754,22.28,137.94,137.84,22.28]
[1725058457357,3.6264,137.89,137.84,25.9073]
[1725058457957,0.05480902,137.88,137.85,3.67719118]
[1725058459558,0.05480902,137.88,137.86,3.627]
[1725058459754,0.05480902,137.88,137.86,25.85521032]
[1725058460353,0.05480902,137.88,137.87,3.6267]
[1725058462061,0.05480902,137.88,137.86,25.9069]
[1725058462357,0.05480902,137.88,137.85,0.04999118]
[1725058462759,3.627,137.86,137.85,0.04999118]
[1725058463455,3.6269,137.87,137.85,0.04999118]
[1725058464554,3.627,137.86,137.85,0.04999118]
[1725058464752,0.05480902,137.88,137.85,0.04999118]
[1725058465762,3.627,137.86,137.85,0.04999118]
[1725058467258,343.0,138.04,137.85,22.32999118]
[1725058467464,343.0,138.04,137.86,0.091]
[1725058467465,2.7605,138.01,137.86,0.091]
[1725058467658,2.7605,138.01,137.93,22.28]
[1725058467862,2.7605,138.01,137.93,25.905]
[1725058467863,3.63323244,137.99,137.93,25.905]
[1725058468064,3.63323244,137.99,137.93,22.28]
[1725058468265,7.25683244,137.99,137.92,27.84]
[1725058468456,0.05202711,137.97,137.95,0.05000561]
[1725058470367,3.6244,137.96,137.88,27.84]
[1725058470567,27.94,138.0,137.88,27.84]
[1725058470867,0.1,138.0,137.9,3.6259]
[1725058471371,0.04930923,137.96,137.94,0.04593098]
[1725058473187,3.67370923,137.96,137.94,0.04593098]
[1725058473665,3.6246,137.95,137.94,0.04593098]
[1725058482472,3.6253,137.93,137.89,3.6261]
[1725058482667,3.6253,137.93,137.88,27.84]
[1725058483069,3.67923704,137.97,137.88,27.84]
[1725058483266,0.04703762,137.94,137.91,0.04803867]
[1725058483471,0.04754933,137.94,137.91,0.0551834]
[1725058483767,0.04754933,137.94,137.91,3.6806834]
[1725058483976,0.04754933,137.94,137.91,0.0551834]
[1725058484277,0.04754933,137.94,137.92,3.6254]
[1725058484681,0.04754933,137.94,137.91,3.6806834]
[1725058484881,0.04754933,137.94,137.91,0.0551834]
[1725058485180,3.67244933,137.94,137.91,0.0551834]
[1725058486364,3.67244933,137.94,137.91,3.6808834]
[1725058488080,3.67244933,137.94,137.91,0.0551834]
[1725058488979,3.6252,137.93,137.91,0.0551834]
[1725058489177,0.04754933,137.94,137.91,0.0551834]
[1725058489889,3.6254,137.92,137.91,0.0551834]
[1725058496177,22.29,137.93,137.74,7.2602]
[1725058496378,22.29,137.91,137.79,22.29]
[1725058496607,25.82961866,137.91,137.79,25.9652279]
[1725058496781,3.6276,137.84,137.8,3.6283]
[1725058497081,22.29,137.89,137.8,3.6283]
[1725058497287,0.0533199,137.86,137.83,0.05491401]
[1725058497584,3.6275,137.84,137.83,0.05491401]
[1725058498284,2.7119,137.88,137.79,22.29]
[1725058498580,22.29,137.87,137.77,22.29]
[1725058499283,3.6282,137.82,137.81,0.04610041]
[1725058499986,7.25051572,137.82,137.81,0.04610041]
[1725058502093,3.6761345,137.83,137.81,0.04610041]
[1725058502280,0.0482345,137.83,137.82,22.29]
[1725058504190,0.0482345,137.83,137.82,25.9181]
[1725058504488,0.0482345,137.83,137.82,28.65298247]
[1725058507582,0.0482345,137.83,137.82,28.65317456]
[1725058507997,0.0482345,137.83,137.82,28.65305953]
[1725058508892,0.0482345,137.83,137.82,25.02495953]
[1725058509299,3.6760345,137.83,137.82,25.02495953]
[1725058510385,0.0482345,137.83,137.82,25.02495953]
[1725058511090,0.0482345,137.83,137.82,22.29]
[1725058511388,3.6760345,137.83,137.82,2.73464806]
[1725058511591,0.0482345,137.83,137.81,0.04610041]
[1725058511786,0.0482345,137.83,137.76,2.73705742]
[1725058512089,22.29,137.82,137.76,2.73705742]
[1725058512289,1.3229,137.81,137.72,2.73705742]
[1725058512490,3.63,137.75,137.72,2.73705742]
[1725058512687,3.67855076,137.75,137.72,2.78656789]
[1725058512879,0.04855076,137.75,137.73,22.29]
[1725058513084,0.04855076,137.75,137.74,2.73705742]
[1725058513284,0.04855076,137.75,137.74,6.36725742]
[1725058513495,0.04855076,137.75,137.74,3.6302]
[1725058513887,0.04855076,137.75,137.74,6.37064593]
[1725058514194,0.04855076,137.75,137.74,3.6302]
[1725058517601,0.04855076,137.75,137.73,25.9203]
[1725058517897,0.04855076,137.75,137.73,22.29]
[1725058518289,0.04855076,137.75,137.74,3.6302]
[1725058520287,1.3229,137.81,137.74,22.29]
[1725058520497,3.59712451,137.83,137.77,22.29]
[1725058520688,3.6279,137.83,137.79,3.6287]
[1725058521000,7.24433437,137.83,137.79,3.6287]
[1725058521191,0.05198529,137.82,137.8,0.05231501]
[1725058523693,3.6283,137.81,137.8,0.05231501]
[1725058526291,3.6283,137.81,137.77,3.6292]
[1725058526487,0.05198529,137.82,137.75,22.29]
[1725058527096,3.6287,137.8,137.76,3.6294]
[1725058527297,3.6287,137.8,137.77,0.05513632]
[1725058531501,3.6285,137.81,137.77,3.68433632]
[1725058531702,0.05198529,137.82,137.77,22.34513632]
[1725058532407,0.05198529,137.82,137.79,3.6287]
[1725058533502,3.6283,137.81,137.78,3.629]
[1725058535310,0.05198529,137.82,137.77,0.05513632]
[1725058535902,3.6291,137.78,137.77,0.05513632]
[1725058538015,0.05268545,137.79,137.77,22.34513632]
[1725058538511,0.05268545,137.79,137.78,3.6291]
[1725058543408,3.68168545,137.79,137.77,0.05513632]
[1725058545419,3.6291,137.78,137.77,0.05513632]
[1725058549323,4.0301,137.78,137.62,7.2665]
[1725058549513,4.0301,137.78,137.69,22.29]
[1725058549514,7.67441381,137.78,137.69,22.29]
[1725058549714,3.6301,137.75,137.7,3.631]
[1725058550326,0.0459578,137.74,137.71,0.04308092]
[1725058550534,0.04905273,137.74,137.71,0.04308092]
[1725058551023,3.6307,137.72,137.71,0.04308092]
[1725058552228,3.6307,137.72,137.6,22.29]
[1725058552229,3.63778213,137.73,137.58,7.2688]
[1725058552428,22.29,137.76,137.66,22.29]
[1725058552627,25.87563856,137.76,137.66,22.29]
[1725058552932,3.6311,137.71,137.67,3.632]
[1725058553123,0.05250719,137.7,137.67,3.632]
[1725058554519,3.68380719,137.7,137.67,3.632]
[1725058555129,3.68380719,137.7,137.66,25.9222]
[1725058555333,3.6316,137.69,137.66,25.9222]
[1725058555631,0.05250719,137.7,137.64,3.54352719]
[1725058555832,0.05250719,137.7,137.64,3.6326]
[1725058556065,0.05250719,137.7,137.65,3.68201292]
[1725058556521,0.05250719,137.7,137.62,2.7437]
[1725058556732,0.05250719,137.7,137.64,22.29]
[1725058556933,3.6319,137.68,137.65,3.6324]
[1725058558329,3.6319,137.68,137.66,3.6322]
[1725058559533,0.05250719,137.7,137.64,25.93316316]
[1725058560631,3.6316,137.69,137.66,3.6322]
[1725058561332,3.6319,137.68,137.65,3.6324]
[1725058563634,3.632,137.67,137.65,3.6324]
[1725058563929,0.05250719,137.7,137.63,3.6329]
[1725058564132,0.04834356,137.68,137.63,3.6329]
[1725058565130,3.6325,137.65,137.63,3.6329]
[1725058567436,0.04834356,137.68,137.6,25.86895119]
[1725058567640,0.05069607,137.65,137.61,2.73872545]
[1725058567836,0.05069607,137.65,137.6,22.29]
[1725058568237,3.6331,137.63,137.61,3.6335]
[1725058570843,3.6329,137.64,137.61,3.6335]
[1725058571044,0.05069607,137.65,137.62,3.6333]
[1725058571346,3.68339607,137.65,137.62,3.6333]
[1725058572049,3.6329,137.64,137.62,3.6333]
[1725058572442,3.6331,137.63,137.59,3.56624055]
[1725058572644,0.05069607,137.65,137.58,22.29]
[1725058572841,0.05323252,137.63,137.56,1.3328]
[1725058573151,0.05323252,137.63,137.56,4.07031651]
[1725058573348,3.64251045,137.63,137.57,3.67717565]
[1725058573553,0.05323252,137.63,137.57,3.67717565]
[1725058573844,0.05323252,137.63,137.56,1.3328]
[1725058574051,0.05323252,137.63,137.56,23.6228]
[1725058574250,0.05323252,137.63,137.58,3.6344]
[1725058575454,3.6335,137.62,137.58,3.6344]
[1725058575952,3.6336,137.61,137.58,3.6344]
[1725058578251,3.6334,137.62,137.58,3.6344]
[1725058579156,0.05323252,137.63,137.56,6.42540427]
[1725058579451,0.05323252,137.63,137.58,22.29]
[1725058579646,0.05323252,137.63,137.61,3.6336]
[1725058582960,0.05323252,137.63,137.59,3.634]
[1725058583256,0.05323252,137.63,137.58,22.29]
[1725058584061,0.05323252,137.63,137.61,3.6334]
[1725058585658,0.05323252,137.63,137.62,3.6333]
[1725058612294,0.05323252,137.63,137.62,6.37282957]
[1725058615785,3.54459385,137.7,137.62,11.66952957]
[1725058615989,11.7835,137.73,137.64,8.93]
[1725058616290,3.6311,137.71,137.67,3.6318]
[1725058616496,3.56202985,137.7,137.68,2.73952957]
[1725058616994,8.98154947,137.7,137.68,2.79276209]
[1725058617185,12.55478786,137.7,137.63,2.73844107]
[1725058617385,8.93,137.67,137.64,6.37114107]
[1725058617590,8.93,137.67,137.65,2.73844107]
[1725058617791,8.93,137.67,137.66,2.73844107]
[1725058618088,8.93,137.67,137.64,3.6327]
[1725058618089,12.5355606,137.67,137.65,2.73844107]
[1725058618396,16.1675606,137.67,137.65,2.73844107]
[1725058619095,16.1675606,137.67,137.66,2.73844107]
[1725058619397,16.1675606,137.67,137.65,2.73844107]
[1725058619596,16.1675606,137.67,137.66,2.73844107]
[1725058619794,16.1675606,137.67,137.65,2.73844107]
[1725058619994,16.1675606,137.67,137.66,2.73844107]
[1725058620197,16.1675606,137.67,137.65,2.73844107]
[1725058620395,16.1675606,137.67,137.66,2.73844107]
[1725058620698,16.1675606,137.67,137.65,2.73844107]
[1725058620902,16.1675606,137.67,137.66,2.73844107]
[1725058621094,12.5355606,137.67,137.57,4.0256]
[1725058621396,0.05584827,137.63,137.58,11.67028738]
[1725058621599,0.05584827,137.63,137.59,2.74028738]
[1725058621836,0.05584827,137.63,137.61,3.6335]
[1725058621994,0.05584827,137.63,137.62,2.74028738]
[1725058627095,12.61894827,137.63,137.62,2.74028738]
[1725058633400,3.6334,137.62,137.59,3.6341]
[1725058633904,3.6334,137.62,137.6,2.74138926]
[1725058634199,3.6334,137.62,137.61,2.74138926]